Department Family,Entity,Date Paid,Expense Type,Expenses Area,Supplier Name,Transaction Reference,Total,VAT Registration Number
Department of Health,Imperial College Healthcare NHS Trust,03/07/2018,Acton Housing Association,Housing Deductions,A2dominion Housing Group Ltd,3798742,"191,862.54",Optional requirement only
Department of Health,Imperial College Healthcare NHS Trust,03/07/2018,Agency Nursing: Qualified,Div Of Med & Integrated Care,Reed,3797080,"46,246.69",Optional requirement only
Department of Health,Imperial College Healthcare NHS Trust,03/07/2018,Agency Nursing: Qualified,Div Of Women & Clin Support,Reed,3797080,"46,974.38",Optional requirement only
Department of Health,Imperial College Healthcare NHS Trust,03/07/2018,Agency Scient & Prof Qualified,Pathology,Reed,9001,"46,764.61",Optional requirement only
Department of Health,Imperial College Healthcare NHS Trust,03/07/2018,Buildings-Additions-Purchased,Capital Summary,Amber Group Limited,3784857,"97,847.64",Optional requirement only
Department of Health,Imperial College Healthcare NHS Trust,03/07/2018,Buildings-Additions-Purchased,Capital Summary,Cbre Managed Services Ltd,3796028,"315,173.35",Optional requirement only
Department of Health,Imperial College Healthcare NHS Trust,03/07/2018,Buildings-Additions-Purchased,Capital Summary,Cbre Managed Services Ltd,3797608,"782,574.20",Optional requirement only
Department of Health,Imperial College Healthcare NHS Trust,03/07/2018,Buildings-Additions-Purchased,Capital Summary,M&J Group (Construction & Roofin) Ltd [Cs],3796109,"35,025.65",Optional requirement only
Department of Health,Imperial College Healthcare NHS Trust,03/07/2018,Cleaning Materials,Nursing Directorate,Synergy Health Managed Services Ltd,3797651,"43,080.95",Optional requirement only
Department of Health,Imperial College Healthcare NHS Trust,03/07/2018,Cx-Hh Consultant Load,Ichnt Balance Sheet,Dr Andrew Wright,3798752,"88,587.25",Optional requirement only
Department of Health,Imperial College Healthcare NHS Trust,03/07/2018,Cx-Hh Consultant Load,Ichnt Balance Sheet,Zahid Rehan Salim,3798846,"28,282.40",Optional requirement only
Department of Health,Imperial College Healthcare NHS Trust,03/07/2018,Ext Contract - Patient Travel,Nursing Directorate,Dhl Supply Chain  (Former Excel),3798716,"31,454.76",Optional requirement only
Department of Health,Imperial College Healthcare NHS Trust,03/07/2018,Ext Contract - Patient Travel,Nursing Directorate,Dhl Supply Chain  (Former Excel),3798717,"31,454.76",Optional requirement only
Department of Health,Imperial College Healthcare NHS Trust,03/07/2018,Ext Contract - Patient Travel,Nursing Directorate,Dhl Supply Chain  (Former Excel),3798718,"31,454.76",Optional requirement only
Department of Health,Imperial College Healthcare NHS Trust,03/07/2018,Ext Contr Catering,Private Patients Directorate,Sodexo Limited,3796136,"159,533.95",Optional requirement only
Department of Health,Imperial College Healthcare NHS Trust,03/07/2018,Ext Contr Laundry,Nursing Directorate,Synergy Health Managed Services Ltd,3797652,"51,343.80",Optional requirement only
Department of Health,Imperial College Healthcare NHS Trust,03/07/2018,Ext Contr Laundry,Nursing Directorate,Synergy Health Managed Services Ltd,3797653,"54,139.27",Optional requirement only
Department of Health,Imperial College Healthcare NHS Trust,03/07/2018,Ext Contr Laundry,Nursing Directorate,Synergy Health Managed Services Ltd,3797654,"56,716.07",Optional requirement only
Department of Health,Imperial College Healthcare NHS Trust,03/07/2018,Ic Pay Rechge In: Admin & Mgmt,Medical Director Summary,Imperial College London,3797438,"28,400.43",Optional requirement only
Department of Health,Imperial College Healthcare NHS Trust,03/07/2018,Interpreting Services,Div Of Women & Clin Support,Oncall Interpreters Ltd [Cw],3799141,"42,217.42",Optional requirement only
Department of Health,Imperial College Healthcare NHS Trust,03/07/2018,Interpreting Services,Div Of Women & Clin Support,Oncall Interpreters Ltd [Cw],3799142,"45,595.42",Optional requirement only
Department of Health,Imperial College Healthcare NHS Trust,03/07/2018,Interpreting Services,Div Of Women & Clin Support,Oncall Interpreters Ltd [Cw],3799143,"47,584.76",Optional requirement only
Department of Health,Imperial College Healthcare NHS Trust,03/07/2018,Isotopes,Div Of Women & Clin Support,Mallinckrodt Rp Uk Ltd,3796870,"47,330.40",Optional requirement only
Department of Health,Imperial College Healthcare NHS Trust,03/07/2018,It Eqpt-Additions,Capital Summary,European Electronique Ltd,3797461,"481,335.59",Optional requirement only
Department of Health,Imperial College Healthcare NHS Trust,03/07/2018,Jac - Stock,Stock,Aah Pharmaceuticals Limited,3792443,"40,893.72",Optional requirement only
Department of Health,Imperial College Healthcare NHS Trust,03/07/2018,Jac - Stock,Stock,Csl Behring Uk Ltd,3794059,"92,300.00",Optional requirement only
Department of Health,Imperial College Healthcare NHS Trust,03/07/2018,Jac - Stock,Stock,Qualasept Ltd,3798076,"56,671.08",Optional requirement only
Department of Health,Imperial College Healthcare NHS Trust,03/07/2018,Med & Prof Fees (Imaging Cons),Ichnt Balance Sheet,Lindo Wing Radiology Llp,3798806,"148,616.75",Optional requirement only
Department of Health,Imperial College Healthcare NHS Trust,03/07/2018,Non-Nhs Pay Rechge In: Nursing,Div Of Med & Integrated Care,Gch (Acton) Ltd,3784273,"26,999.98",Optional requirement only
Department of Health,Imperial College Healthcare NHS Trust,03/07/2018,Other Research Exp - Non-Pay,Rd Medical Directorate,Imperial College London,3796027,"1,333,478.00",Optional requirement only
Department of Health,Imperial College Healthcare NHS Trust,03/07/2018,Rent,Nursing Directorate,Thames Valley Charitable Housing,3798713,"44,967.34",Optional requirement only
Department of Health,Imperial College Healthcare NHS Trust,03/07/2018,Rent,Nursing Directorate,Thames Valley Charitable Housing,3798714,"44,967.34",Optional requirement only
Department of Health,Imperial College Healthcare NHS Trust,03/07/2018,Rent,Nursing Directorate,Thames Valley Charitable Housing,3798715,"44,967.34",Optional requirement only
Department of Health,Imperial College Healthcare NHS Trust,03/07/2018,Services Received - Nhsts,Nursing Directorate,Central & North West London Nhs Ft,8999,"35,000.00",Optional requirement only
Department of Health,Imperial College Healthcare NHS Trust,03/07/2018,Thames Valley Housing Assoc,Housing Deductions,Thames Valley Charitable Housing,3798743,"114,452.73",Optional requirement only
Department of Health,Imperial College Healthcare NHS Trust,04/07/2018,Clinical Managed Service Contr,Pathology,Abbott Laboratories Ltd,3800041,"176,804.58",Optional requirement only
Department of Health,Imperial College Healthcare NHS Trust,05/07/2018,Cnst Contributions,Other Hq Departments,Nhs Litigation Authority,3799940,"3,233,960.70",Optional requirement only
Department of Health,Imperial College Healthcare NHS Trust,05/07/2018,Insurance Costs,Office Of Chief Executive,Nhs Litigation Authority,3799941,"42,303.50",Optional requirement only
Department of Health,Imperial College Healthcare NHS Trust,05/07/2018,Rates,Nursing Directorate,City Of Westminster,3799939,"154,926.00",Optional requirement only
Department of Health,Imperial College Healthcare NHS Trust,05/07/2018,Rates,Nursing Directorate,London Borough Hammersmith & Fulham,3799935,"192,375.00",Optional requirement only
Department of Health,Imperial College Healthcare NHS Trust,05/07/2018,Rates,Nursing Directorate,London Borough Hammersmith & Fulham,3799936,"205,200.00",Optional requirement only
Department of Health,Imperial College Healthcare NHS Trust,06/07/2018,Buildings-Additions-Purchased,Capital Summary,M&J Group (Construction & Roofin) Ltd [Cs],3799676,"42,379.57",Optional requirement only
Department of Health,Imperial College Healthcare NHS Trust,06/07/2018,Buildings-Additions-Purchased,Capital Summary,M&J Group (Construction & Roofin) Ltd [Cs],3800759,"60,923.89",Optional requirement only
Department of Health,Imperial College Healthcare NHS Trust,06/07/2018,Buildings-Add(Prof Fee)-Purch,Capital Summary,Ingleton Wood,3800581,"66,856.89",Optional requirement only
Department of Health,Imperial College Healthcare NHS Trust,06/07/2018,Childcare Voucher (Kids Unltd),Childcare Vouchers,Sodexo Motivation Solutions Uk Ltd,3800544,"72,310.62",Optional requirement only
Department of Health,Imperial College Healthcare NHS Trust,06/07/2018,Clinical Managed Service Contr,"Div Of Surg, Cardiov & Cancer",Chas A Blatchford And Sons Ltd,3800940,"46,259.60",Optional requirement only
Department of Health,Imperial College Healthcare NHS Trust,06/07/2018,Contr Other External,Nursing Directorate,Cbre Managed Services Ltd,3800508,"662,614.30",Optional requirement only
Department of Health,Imperial College Healthcare NHS Trust,06/07/2018,Contr Photocopier Rental,Information & Comms Technology,Canon (Uk) Ltd,3800550,"214,308.98",Optional requirement only
Department of Health,Imperial College Healthcare NHS Trust,06/07/2018,Ext Contract - Patient Travel,Nursing Directorate,Dhl Supply Chain  (Former Excel),3800074,"1,107,272.57",Optional requirement only
Department of Health,Imperial College Healthcare NHS Trust,06/07/2018,Ext Contr Catering,Private Patients Directorate,Sodexo Limited,3800952,"159,533.95",Optional requirement only
Department of Health,Imperial College Healthcare NHS Trust,06/07/2018,Ext Contr Logistics,Finance Directorate,Eleanor Hospital Logistics Ltd,3800092,"37,018.80",Optional requirement only
Department of Health,Imperial College Healthcare NHS Trust,06/07/2018,Ic Library Expenditure,Medical Director Summary,Imperial College London,3800145,"95,353.50",Optional requirement only
Department of Health,Imperial College Healthcare NHS Trust,06/07/2018,Interpreting Services,Div Of Women & Clin Support,Oncall Interpreters Ltd [Cw],3792146,"49,654.44",Optional requirement only
Department of Health,Imperial College Healthcare NHS Trust,06/07/2018,Jac - Stock,Stock,Aah Pharmaceuticals Limited,3797936,"55,545.60",Optional requirement only
Department of Health,Imperial College Healthcare NHS Trust,06/07/2018,Jac - Stock,Stock,Janssen-Cilag Ltd,3796769,"64,800.00",Optional requirement only
Department of Health,Imperial College Healthcare NHS Trust,06/07/2018,Jac - Stock,Stock,Novartis Pharmaceutical (Uk) Ltd,3784403,"35,360.88",Optional requirement only
Department of Health,Imperial College Healthcare NHS Trust,06/07/2018,Jac - Stock,Stock,Roche Products Ltd,3794557,"38,369.76",Optional requirement only
Department of Health,Imperial College Healthcare NHS Trust,06/07/2018,Med & Surg Equip General,"Div Of Surg, Cardiov & Cancer",Ge Medical Systems Limited,3799889,"43,228.40",Optional requirement only
Department of Health,Imperial College Healthcare NHS Trust,06/07/2018,Other Research Exp - Pay,Rd Medical Directorate,Imperial College London,3800151,"140,916.11",Optional requirement only
Department of Health,Imperial College Healthcare NHS Trust,06/07/2018,Other Research Exp - Pay,Rd Medical Directorate,Imperial College London,3800152,"233,216.44",Optional requirement only
Department of Health,Imperial College Healthcare NHS Trust,06/07/2018,Other Transport Costs,Pathology,Dhl Supply Chain  (Former Excel),9072,"94,655.28",Optional requirement only
Department of Health,Imperial College Healthcare NHS Trust,06/07/2018,Other Transport Costs,Pathology,Dhl Supply Chain  (Former Excel),9073,"94,655.28",Optional requirement only
Department of Health,Imperial College Healthcare NHS Trust,06/07/2018,P & M-Additions-Purchased,Capital Summary,Jackson Lift Services Limited,3800619,"44,257.20",Optional requirement only
Department of Health,Imperial College Healthcare NHS Trust,06/07/2018,Postage & Carriage,Div Of Women & Clin Support,Xerox (Uk) Ltd,3800073,"53,660.76",Optional requirement only
Department of Health,Imperial College Healthcare NHS Trust,06/07/2018,Services Received - Nhsts,Div Of Med & Integrated Care,West London Mental Health Nhs Trust,3800535,"49,054.00",Optional requirement only
Department of Health,Imperial College Healthcare NHS Trust,06/07/2018,Services Received - Nhsts,Office Of Chief Executive,Care Quality Commission,3800549,"768,975.00",Optional requirement only
Department of Health,Imperial College Healthcare NHS Trust,06/07/2018,Services Received - Nhsts,Other Hq Departments,Nhs Hammersmith And Fulham Ccg,3800534,"405,555.36",Optional requirement only
Department of Health,Imperial College Healthcare NHS Trust,06/07/2018,Srvcsrecd-Other Nhs,Finance Directorate,Salford Royal Nhs Foundation Trust,3800465,"31,261.00",Optional requirement only
Department of Health,Imperial College Healthcare NHS Trust,06/07/2018,Srvcsrecd-Other Nhs,Finance Directorate,Salford Royal Nhs Foundation Trust,3800468,"31,261.00",Optional requirement only
Department of Health,Imperial College Healthcare NHS Trust,10/07/2018,Agency Nursing: Qualified,Div Of Med & Integrated Care,Reed,3801476,"119,458.04",Optional requirement only
Department of Health,Imperial College Healthcare NHS Trust,10/07/2018,Agency Nursing: Qualified,"Div Of Surg, Cardiov & Cancer",Reed,3801476,"91,656.88",Optional requirement only
Department of Health,Imperial College Healthcare NHS Trust,10/07/2018,Agency Nursing: Qualified,Div Of Women & Clin Support,Reed,3801476,"40,197.85",Optional requirement only
Department of Health,Imperial College Healthcare NHS Trust,10/07/2018,Agency Scient & Prof Qualified,Pathology,Reed,3801476,"44,274.30",Optional requirement only
Department of Health,Imperial College Healthcare NHS Trust,10/07/2018,Bldg/Eng Equip Maint/Rep,Nursing Directorate,Cbre Managed Services Ltd,3800948,"197,716.85",Optional requirement only
Department of Health,Imperial College Healthcare NHS Trust,10/07/2018,Bldg/Eng Equip Maint/Rep,Nursing Directorate,Cbre Managed Services Ltd,3800950,"274,423.55",Optional requirement only
Department of Health,Imperial College Healthcare NHS Trust,10/07/2018,Blood Products,Pathology,Nhs Blood And Transplant,3802051,"32,322.78",Optional requirement only
Department of Health,Imperial College Healthcare NHS Trust,10/07/2018,Buildings-Additions-Purchased,Capital Summary,Cbre Managed Services Ltd,3800948,"667,862.87",Optional requirement only
Department of Health,Imperial College Healthcare NHS Trust,10/07/2018,Buildings-Additions-Purchased,Capital Summary,Cbre Managed Services Ltd,3800950,"902,535.84",Optional requirement only
Department of Health,Imperial College Healthcare NHS Trust,10/07/2018,Buildings-Additions-Purchased,Capital Summary,Cuffe  Plc,3800498,"31,680.00",Optional requirement only
Department of Health,Imperial College Healthcare NHS Trust,10/07/2018,Contr Other External,Nursing Directorate,Cbre Managed Services Ltd,3800997,"780,224.22",Optional requirement only
Department of Health,Imperial College Healthcare NHS Trust,10/07/2018,Contr Other External,Nursing Directorate,Cbre Managed Services Ltd,3800999,"780,224.22",Optional requirement only
Department of Health,Imperial College Healthcare NHS Trust,10/07/2018,F & F-Additions,Capital Summary,Princebuild Limited,3800995,"46,681.20",Optional requirement only
Department of Health,Imperial College Healthcare NHS Trust,10/07/2018,Jac - Stock,Stock,Roche Products Ltd,3794198,"59,323.57",Optional requirement only
Department of Health,Imperial College Healthcare NHS Trust,10/07/2018,Med & Surg Equip Hire,Div Of Women & Clin Support,Medical Research Council,3802014,"40,560.00",Optional requirement only
Department of Health,Imperial College Healthcare NHS Trust,10/07/2018,Med & Surg Equip Hire,Div Of Women & Clin Support,Medical Research Council,3802015,"43,680.00",Optional requirement only
Department of Health,Imperial College Healthcare NHS Trust,10/07/2018,Other Research Exp - Non-Pay,Rd Medical Directorate,Central London Healthcare Cic,3800962,"60,340.00",Optional requirement only
Department of Health,Imperial College Healthcare NHS Trust,10/07/2018,Other Research Exp - Non-Pay,Rd Medical Directorate,Ealing Gp Limited,3800972,"91,390.50",Optional requirement only
Department of Health,Imperial College Healthcare NHS Trust,10/07/2018,Other Research Exp - Non-Pay,Rd Medical Directorate,H And Fgpf Limited,3800966,"61,032.50",Optional requirement only
Department of Health,Imperial College Healthcare NHS Trust,10/07/2018,Other Research Exp - Non-Pay,Rd Medical Directorate,Harness Care Co-Operative Limited,3800971,"62,104.00",Optional requirement only
Department of Health,Imperial College Healthcare NHS Trust,10/07/2018,Other Research Exp - Non-Pay,Rd Medical Directorate,Kilburn Primary Care Co-Op Limited,3800957,"43,310.00",Optional requirement only
Department of Health,Imperial College Healthcare NHS Trust,10/07/2018,Other Research Exp - Non-Pay,Rd Medical Directorate,K&W Healthcare Ltd,3800960,"61,019.50",Optional requirement only
Department of Health,Imperial College Healthcare NHS Trust,11/07/2018,Supplies Issues Recharges,Stock,Nhs Supply Chain,3783637,"106,716.87",Optional requirement only
Department of Health,Imperial College Healthcare NHS Trust,11/07/2018,Supplies Issues Recharges,Stock,Nhs Supply Chain,3783640,"116,957.62",Optional requirement only
Department of Health,Imperial College Healthcare NHS Trust,11/07/2018,Supplies Issues Recharges,Stock,Nhs Supply Chain,3783643,"131,496.34",Optional requirement only
Department of Health,Imperial College Healthcare NHS Trust,12/07/2018,Agency Nursing: Qualified,Div Of Med & Integrated Care,Reed,3803270,"130,471.13",Optional requirement only
Department of Health,Imperial College Healthcare NHS Trust,12/07/2018,Agency Nursing: Qualified,"Div Of Surg, Cardiov & Cancer",Reed,3803270,"136,272.57",Optional requirement only
Department of Health,Imperial College Healthcare NHS Trust,12/07/2018,Agency Nursing: Qualified,Div Of Women & Clin Support,Reed,3803270,"135,093.90",Optional requirement only
Department of Health,Imperial College Healthcare NHS Trust,12/07/2018,Agency Scient & Prof Qualified,Pathology,Reed,9221,"44,399.23",Optional requirement only
Department of Health,Imperial College Healthcare NHS Trust,12/07/2018,Blood Products,Pathology,Nhs Blood And Transplant,3797471,"172,406.78",Optional requirement only
Department of Health,Imperial College Healthcare NHS Trust,12/07/2018,Buildings-Additions-Purchased,Capital Summary,Alarm Communication Limited,3803167,"50,607.40",Optional requirement only
Department of Health,Imperial College Healthcare NHS Trust,12/07/2018,Buildings-Additions-Purchased,Capital Summary,Alarm Communication Limited,3803173,"48,000.00",Optional requirement only
Department of Health,Imperial College Healthcare NHS Trust,12/07/2018,Buildings-Additions-Purchased,Capital Summary,Alarm Communication Limited,3803177,"44,770.42",Optional requirement only
Department of Health,Imperial College Healthcare NHS Trust,12/07/2018,Buildings-Additions-Purchased,Capital Summary,Willmott Dixon Construction,3803263,"330,484.80",Optional requirement only
Department of Health,Imperial College Healthcare NHS Trust,12/07/2018,Clinical Managed Service Contr,Pathology,Beckman Coulter Uk Ltd,9178,"50,760.48",Optional requirement only
Department of Health,Imperial College Healthcare NHS Trust,12/07/2018,Computer Maintenance,Private Patients Directorate,Streets Heaver Computer Systems,3803206,"45,770.71",Optional requirement only
Department of Health,Imperial College Healthcare NHS Trust,12/07/2018,Computer Software/License,Medical Director Summary,Crab Clinical Informatics Ltd,3803097,"42,000.00",Optional requirement only
Department of Health,Imperial College Healthcare NHS Trust,12/07/2018,Consultancy Fees,"Div Of Surg, Cardiov & Cancer",Four Eyes Insight Limited,3803098,"489,282.00",Optional requirement only
Department of Health,Imperial College Healthcare NHS Trust,12/07/2018,Dialysers,Div Of Med & Integrated Care,Baxter Healthcare Ltd,3803202,"37,578.60",Optional requirement only
Department of Health,Imperial College Healthcare NHS Trust,12/07/2018,Ext Contr Catering,Private Patients Directorate,Sodexo Limited,3803149,"159,533.95",Optional requirement only
Department of Health,Imperial College Healthcare NHS Trust,12/07/2018,Ic Pay Recharge In: Med,"Div Of Surg, Cardiov & Cancer",Imperial College London,3803155,"99,891.38",Optional requirement only
Department of Health,Imperial College Healthcare NHS Trust,12/07/2018,Ic Pay Recharge In: Med,"Div Of Surg, Cardiov & Cancer",Imperial College London,3803157,"88,110.64",Optional requirement only
Department of Health,Imperial College Healthcare NHS Trust,12/07/2018,Ic Pay Recharge In: Med,"Div Of Surg, Cardiov & Cancer",Imperial College London,3803159,"90,348.91",Optional requirement only
Department of Health,Imperial College Healthcare NHS Trust,12/07/2018,Jac - Stock,Stock,Bayer Plc,3795074,"125,856.00",Optional requirement only
Department of Health,Imperial College Healthcare NHS Trust,12/07/2018,Other Research Exp - Pay,Rd Medicine Division,Imperial College London,3802887,"28,391.15",Optional requirement only
Department of Health,Imperial College Healthcare NHS Trust,12/07/2018,Other Transport Costs,Pathology,Dhl Supply Chain  (Former Excel),9203,"82,608.91",Optional requirement only
Department of Health,Imperial College Healthcare NHS Trust,12/07/2018,Other Transport Costs,Pathology,Dhl Supply Chain  (Former Excel),9204,"82,608.91",Optional requirement only
Department of Health,Imperial College Healthcare NHS Trust,12/07/2018,Printing Costs,Div Of Women & Clin Support,Kingsley Print & Design,3803199,"36,601.20",Optional requirement only
Department of Health,Imperial College Healthcare NHS Trust,12/07/2018,Supplies Issues Recharges,Stock,Nhs Supply Chain [Zero Cost Only],3803099,"142,035.07",Optional requirement only
Department of Health,Imperial College Healthcare NHS Trust,12/07/2018,Supplies Issues Recharges,Stock,Nhs Supply Chain [Zero Cost Only],3803144,"112,318.40",Optional requirement only
Department of Health,Imperial College Healthcare NHS Trust,12/07/2018,Water,Nursing Directorate,Castle Water Ltd,3798733,"34,574.06",Optional requirement only
Department of Health,Imperial College Healthcare NHS Trust,17/07/2018,Agency Nursing: Qualified,Pathology,Reed,3802319,"64,561.18",Optional requirement only
Department of Health,Imperial College Healthcare NHS Trust,17/07/2018,Blood Products,Pathology,Nhs Blood And Transplant,3804773,"61,105.00",Optional requirement only
Department of Health,Imperial College Healthcare NHS Trust,17/07/2018,Clinical Managed Service Contr,"Div Of Surg, Cardiov & Cancer",Medtronic Ltd,3796815,"1,249,195.73",Optional requirement only
Department of Health,Imperial College Healthcare NHS Trust,17/07/2018,Computer Software/License,Pathology,Clinisys Solutions Ltd,9201,"146,982.58",Optional requirement only
Department of Health,Imperial College Healthcare NHS Trust,17/07/2018,Drugs Pbr Excluded,"Div Of Surg, Cardiov & Cancer",Healthcare At Home Ltd,3800149,"30,800.00",Optional requirement only
Department of Health,Imperial College Healthcare NHS Trust,17/07/2018,Ext Contract - Patient Travel,Nursing Directorate,Dhl Supply Chain  (Former Excel),3803371,"1,115,313.15",Optional requirement only
Department of Health,Imperial College Healthcare NHS Trust,17/07/2018,Jac - Stock,Stock,Gilead Sciences Ltd,3798070,"37,477.27",Optional requirement only
Department of Health,Imperial College Healthcare NHS Trust,17/07/2018,Jac - Stock,Stock,Janssen-Cilag Ltd,3798010,"56,162.76",Optional requirement only
Department of Health,Imperial College Healthcare NHS Trust,17/07/2018,Other Research Exp - Non-Pay,Rd Surgery & Cancer Division,Foundation For Circulatory Health,3804771,"30,000.00",Optional requirement only
Department of Health,Imperial College Healthcare NHS Trust,17/07/2018,Supplies Issues Recharges,Stock,Nhs Supply Chain [Zero Cost Only],3803142,"140,941.13",Optional requirement only
Department of Health,Imperial College Healthcare NHS Trust,19/07/2018,Blood Products,Pathology,Nhs Blood And Transplant,9394,"172,406.78",Optional requirement only
Department of Health,Imperial College Healthcare NHS Trust,19/07/2018,Blood Products,Pathology,Nhs Blood And Transplant,9395,"172,406.78",Optional requirement only
Department of Health,Imperial College Healthcare NHS Trust,19/07/2018,Blood Products,Pathology,Nhs Blood And Transplant,9396,"172,406.78",Optional requirement only
Department of Health,Imperial College Healthcare NHS Trust,19/07/2018,Buildings-Add(Prof Fee)-Purch,Capital Summary,Aecom,3797424,"98,985.47",Optional requirement only
Department of Health,Imperial College Healthcare NHS Trust,19/07/2018,Clinical Managed Service Contr,Pathology,Genmed.Me Ltd,9105,"74,813.02",Optional requirement only
Department of Health,Imperial College Healthcare NHS Trust,19/07/2018,Clinical Managed Service Contr,Pathology,Genmed.Me Ltd,9106,"36,431.14",Optional requirement only
Department of Health,Imperial College Healthcare NHS Trust,19/07/2018,Cnst Contributions,Other Hq Departments,Nhs Litigation Authority,3805809,"3,233,960.70",Optional requirement only
Department of Health,Imperial College Healthcare NHS Trust,19/07/2018,Computer Software/License,Pathology,Clinisys Solutions Ltd,9202,"148,339.38",Optional requirement only
Department of Health,Imperial College Healthcare NHS Trust,19/07/2018,Dist Award - Nat Cea,Div Of Med & Integrated Care,Imperial College London,3805850,"98,089.55",Optional requirement only
Department of Health,Imperial College Healthcare NHS Trust,19/07/2018,Dist Award - Nat Cea,"Div Of Surg, Cardiov & Cancer",Imperial College London,3805850,"73,585.67",Optional requirement only
Department of Health,Imperial College Healthcare NHS Trust,19/07/2018,Dist Award - Nat Cea,Div Of Women & Clin Support,Imperial College London,3805850,"49,375.05",Optional requirement only
Department of Health,Imperial College Healthcare NHS Trust,19/07/2018,Dist Award - Nat Cea,Medical Director Summary,Imperial College London,3805850,"27,677.24",Optional requirement only
Department of Health,Imperial College Healthcare NHS Trust,19/07/2018,Ic Pay Recharge In: Med,Div Of Med & Integrated Care,Imperial College London,3805850,"149,646.54",Optional requirement only
Department of Health,Imperial College Healthcare NHS Trust,19/07/2018,Ic Pay Recharge In: Med,"Div Of Surg, Cardiov & Cancer",Imperial College London,3805850,"375,322.37",Optional requirement only
Department of Health,Imperial College Healthcare NHS Trust,19/07/2018,Ic Pay Recharge In: Med,Div Of Women & Clin Support,Imperial College London,3805850,"96,535.07",Optional requirement only
Department of Health,Imperial College Healthcare NHS Trust,19/07/2018,Income Tax Paye,Ichnt Balance Sheet,Hmrc Government Employers Account,3805800,"14,803,288.44",Optional requirement only
Department of Health,Imperial College Healthcare NHS Trust,19/07/2018,Insurance Costs,Office Of Chief Executive,Nhs Litigation Authority,3805811,"42,303.50",Optional requirement only
Department of Health,Imperial College Healthcare NHS Trust,19/07/2018,Jac - Stock,Stock,Csl Behring Uk Ltd,3804033,"35,750.00",Optional requirement only
Department of Health,Imperial College Healthcare NHS Trust,19/07/2018,Jac - Stock,Stock,Genzyme Therapeutics Ltd,3805095,"245,166.00",Optional requirement only
Department of Health,Imperial College Healthcare NHS Trust,19/07/2018,Nhs Pay Recharge In: Med,Finance Directorate,Royal Free London Nhs Foundation Trust,3761156,"123,855.70",Optional requirement only
Department of Health,Imperial College Healthcare NHS Trust,19/07/2018,Nhs Pay Recharge In: Med,Finance Directorate,Royal Free London Nhs Foundation Trust,3781393,"136,859.00",Optional requirement only
Department of Health,Imperial College Healthcare NHS Trust,19/07/2018,Nhs Pay Recharge In: Med,Finance Directorate,Royal Free London Nhs Foundation Trust,3781394,"145,275.00",Optional requirement only
Department of Health,Imperial College Healthcare NHS Trust,19/07/2018,Nhs Pay Recharge In: Med,Finance Directorate,Royal Free London Nhs Foundation Trust,3807638,"137,645.82",Optional requirement only
Department of Health,Imperial College Healthcare NHS Trust,19/07/2018,Other Research Exp - Non-Pay,Rd Medical Directorate,Imperial College London,3805839,"1,333,478.00",Optional requirement only
Department of Health,Imperial College Healthcare NHS Trust,19/07/2018,P & M-Additions-Purchased,Capital Summary,Nipro Europe Nv Uk,3805828,"198,720.00",Optional requirement only
Department of Health,Imperial College Healthcare NHS Trust,19/07/2018,Rates,Nursing Directorate,City Of Westminster,3805808,"154,926.00",Optional requirement only
Department of Health,Imperial College Healthcare NHS Trust,19/07/2018,Rates,Nursing Directorate,London Borough Hammersmith & Fulham,3805812,"192,375.00",Optional requirement only
Department of Health,Imperial College Healthcare NHS Trust,19/07/2018,Rates,Nursing Directorate,London Borough Hammersmith & Fulham,3805813,"205,200.00",Optional requirement only
Department of Health,Imperial College Healthcare NHS Trust,19/07/2018,Srvcsrecd-Other Nhs,Pathology,Eurofins Biomnis,3784841,"25,983.28",Optional requirement only
Department of Health,Imperial College Healthcare NHS Trust,23/07/2018,Supplies Issues Recharges,Stock,Nhs Supply Chain [Zero Cost Only],3800441,"102,968.16",Optional requirement only
Department of Health,Imperial College Healthcare NHS Trust,23/07/2018,Supplies Issues Recharges,Stock,Nhs Supply Chain [Zero Cost Only],3800443,"170,842.61",Optional requirement only
Department of Health,Imperial College Healthcare NHS Trust,23/07/2018,Supplies Issues Recharges,Stock,Nhs Supply Chain [Zero Cost Only],3800444,"171,236.98",Optional requirement only
Department of Health,Imperial College Healthcare NHS Trust,23/07/2018,Supplies Issues Recharges,Stock,Nhs Supply Chain [Zero Cost Only],3800445,"183,672.03",Optional requirement only
Department of Health,Imperial College Healthcare NHS Trust,23/07/2018,Supplies Issues Recharges,Stock,Nhs Supply Chain [Zero Cost Only],3800447,"105,830.61",Optional requirement only
Department of Health,Imperial College Healthcare NHS Trust,23/07/2018,Supplies Issues Recharges,Stock,Nhs Supply Chain [Zero Cost Only],3800448,"180,395.71",Optional requirement only
Department of Health,Imperial College Healthcare NHS Trust,23/07/2018,Supplies Issues Recharges,Stock,Nhs Supply Chain [Zero Cost Only],3800449,"117,978.69",Optional requirement only
Department of Health,Imperial College Healthcare NHS Trust,23/07/2018,Supplies Issues Recharges,Stock,Nhs Supply Chain [Zero Cost Only],3800545,"156,126.50",Optional requirement only
Department of Health,Imperial College Healthcare NHS Trust,24/07/2018,Agency Nursing: Qualified,Pathology,Reed,3809609,"43,409.48",Optional requirement only
Department of Health,Imperial College Healthcare NHS Trust,24/07/2018,Computer Software/License,Information & Comms Technology,Cymbio Consulting Ltd,3808950,"40,104.00",Optional requirement only
Department of Health,Imperial College Healthcare NHS Trust,24/07/2018,Consultancy Fees,Information & Comms Technology,Patients Know Best Limited,3803147,"336,450.00",Optional requirement only
Department of Health,Imperial College Healthcare NHS Trust,24/07/2018,Drugs Nhs,Div Of Women & Clin Support,Lloyds Retail Chemists Ltd,3807646,"3,304,598.89",Optional requirement only
Department of Health,Imperial College Healthcare NHS Trust,24/07/2018,Drugs Pbr Excluded,"Div Of Surg, Cardiov & Cancer",Healthcare At Home Ltd,3803581,"107,880.00",Optional requirement only
Department of Health,Imperial College Healthcare NHS Trust,24/07/2018,Electricity,Nursing Directorate,Edf Energy Customer Plc,3809613,"108,575.69",Optional requirement only
Department of Health,Imperial College Healthcare NHS Trust,24/07/2018,Electricity,Nursing Directorate,Edf Energy Customer Plc,3809614,"35,523.89",Optional requirement only
Department of Health,Imperial College Healthcare NHS Trust,24/07/2018,Electricity,Nursing Directorate,Edf Energy Customer Plc,3809616,"290,981.09",Optional requirement only
Department of Health,Imperial College Healthcare NHS Trust,24/07/2018,Electricity,Nursing Directorate,Edf Energy Customer Plc,3809622,"276,169.63",Optional requirement only
Department of Health,Imperial College Healthcare NHS Trust,24/07/2018,Ext Contract Portering,Nursing Directorate,Sodexo Limited,3797485,"435,246.21",Optional requirement only
Department of Health,Imperial College Healthcare NHS Trust,24/07/2018,Ext Contr Catering,Nursing Directorate,Sodexo Limited,3797485,"595,882.34",Optional requirement only
Department of Health,Imperial College Healthcare NHS Trust,24/07/2018,Ext Contr Domestics,Nursing Directorate,Sodexo Limited,3797485,"1,159,139.28",Optional requirement only
Department of Health,Imperial College Healthcare NHS Trust,24/07/2018,Ext Contr Oth Hotel Srv,Nursing Directorate,Sodexo Limited,3797485,"86,180.41",Optional requirement only
Department of Health,Imperial College Healthcare NHS Trust,24/07/2018,Jac - Stock,Stock,Alexion Pharma Uk Ltd,3806102,"30,240.00",Optional requirement only
Department of Health,Imperial College Healthcare NHS Trust,24/07/2018,Jac - Stock,Stock,Jazz Pharmaceuticals Uk Limited [Ph],3803402,"35,478.00",Optional requirement only
Department of Health,Imperial College Healthcare NHS Trust,24/07/2018,Jac - Stock,Stock,Qualasept Ltd,3806089,"414,960.00",Optional requirement only
Department of Health,Imperial College Healthcare NHS Trust,24/07/2018,P & M-Additions-Purchased,Capital Summary,Jackson Lift Services Limited,3808244,"108,000.00",Optional requirement only
Department of Health,Imperial College Healthcare NHS Trust,24/07/2018,Service Charge,Information & Comms Technology,M&S Medicom,3800837,"47,224.20",Optional requirement only
Department of Health,Imperial College Healthcare NHS Trust,24/07/2018,Taxi & Other Vehicle Hire,Nursing Directorate,Dhl Supply Chain  (Former Excel),3798735,"76,480.22",Optional requirement only
Department of Health,Imperial College Healthcare NHS Trust,25/07/2018,It Eqpt-Additions,Capital Summary,European Electronique Ltd,3810380,"116,447.40",Optional requirement only
Department of Health,Imperial College Healthcare NHS Trust,26/07/2018,Agency Nursing: Qualified,Pathology,Reed,3810315,"40,278.15",Optional requirement only
Department of Health,Imperial College Healthcare NHS Trust,26/07/2018,Agency Scient & Prof Qualified,Pathology,Reed,9642,"42,829.72",Optional requirement only
Department of Health,Imperial College Healthcare NHS Trust,26/07/2018,Bldg/Eng Equip Maint/Rep,Nursing Directorate,Cbre Managed Services Ltd,3810730,"199,604.25",Optional requirement only
Department of Health,Imperial College Healthcare NHS Trust,26/07/2018,Buildings-Additions-Purchased,Capital Summary,Alarm Communication Limited,3800165,"33,066.00",Optional requirement only
Department of Health,Imperial College Healthcare NHS Trust,26/07/2018,Buildings-Additions-Purchased,Capital Summary,Alarm Communication Limited,3800171,"32,774.26",Optional requirement only
Department of Health,Imperial College Healthcare NHS Trust,26/07/2018,Buildings-Additions-Purchased,Capital Summary,Alarm Communication Limited,3803179,"62,438.76",Optional requirement only
Department of Health,Imperial College Healthcare NHS Trust,26/07/2018,Buildings-Additions-Purchased,Capital Summary,Cbre Managed Services Ltd,3810730,"608,851.65",Optional requirement only
Department of Health,Imperial College Healthcare NHS Trust,26/07/2018,Buildings-Add(Prof Fee)-Purch,Capital Summary,Building Design Partnership Ltd,3809783,"84,517.20",Optional requirement only
Department of Health,Imperial College Healthcare NHS Trust,26/07/2018,Clinical Managed Service Contr,"Div Of Surg, Cardiov & Cancer",Chas A Blatchford And Sons Ltd,3800935,"46,259.60",Optional requirement only
Department of Health,Imperial College Healthcare NHS Trust,26/07/2018,Clinical Managed Service Contr,Pathology,Genmed.Me Ltd,9104,"85,452.91",Optional requirement only
Department of Health,Imperial College Healthcare NHS Trust,26/07/2018,Contr Other External,Nursing Directorate,Cbre Managed Services Ltd,3804749,"780,224.22",Optional requirement only
Department of Health,Imperial College Healthcare NHS Trust,26/07/2018,Dialysers,Div Of Med & Integrated Care,Baxter Healthcare Ltd,3800585,"38,215.82",Optional requirement only
Department of Health,Imperial College Healthcare NHS Trust,26/07/2018,Ext Contract - Patient Travel,Nursing Directorate,Dhl Supply Chain  (Former Excel),3798737,"43,898.50",Optional requirement only
Department of Health,Imperial College Healthcare NHS Trust,26/07/2018,Ext Contr Catering,Private Patients Directorate,Sodexo Limited,3809781,"159,533.95",Optional requirement only
Department of Health,Imperial College Healthcare NHS Trust,26/07/2018,Ext Contr Logistics,Finance Directorate,Eleanor Hospital Logistics Ltd,3804772,"163,311.42",Optional requirement only
Department of Health,Imperial College Healthcare NHS Trust,26/07/2018,Gas,Nursing Directorate,Corona Energy,3810320,"41,653.22",Optional requirement only
Department of Health,Imperial College Healthcare NHS Trust,26/07/2018,Gas,Nursing Directorate,Corona Energy,3810328,"56,796.29",Optional requirement only
Department of Health,Imperial College Healthcare NHS Trust,26/07/2018,Ic Library Expenditure,Medical Director Summary,Imperial College London,3809774,"95,353.50",Optional requirement only
Department of Health,Imperial College Healthcare NHS Trust,26/07/2018,Ic Pay Recharge In: Med,Pathology,Imperial College London,9695,"26,582.18",Optional requirement only
Department of Health,Imperial College Healthcare NHS Trust,26/07/2018,Jac - Stock,Stock,Aah Pharmaceuticals Limited,3806154,"31,244.40",Optional requirement only
Department of Health,Imperial College Healthcare NHS Trust,26/07/2018,Jac - Stock,Stock,Alliance Healthcare (Distribution) Ltd,3810489,"38,180.05",Optional requirement only
Department of Health,Imperial College Healthcare NHS Trust,26/07/2018,Jac - Stock,Stock,Bms Pharmaceuticals Ltd (0034),3809429,"35,942.40",Optional requirement only
Department of Health,Imperial College Healthcare NHS Trust,26/07/2018,Jac - Stock,Stock,Genzyme Therapeutics Ltd,3809387,"456,516.00",Optional requirement only
Department of Health,Imperial College Healthcare NHS Trust,26/07/2018,Jac - Stock,Stock,Janssen-Cilag Ltd,3807809,"60,480.00",Optional requirement only
Department of Health,Imperial College Healthcare NHS Trust,26/07/2018,Jac - Stock,Stock,Janssen-Cilag Ltd,3807816,"47,520.00",Optional requirement only
Department of Health,Imperial College Healthcare NHS Trust,26/07/2018,Jac - Stock,Stock,Roche Products Ltd,3806199,"52,143.54",Optional requirement only
Department of Health,Imperial College Healthcare NHS Trust,26/07/2018,Other Research Exp - Non-Pay,Rd Medical Directorate,Chelsea And  Westminster Hospital Nhs Ft,3809904,"334,364.00",Optional requirement only
Department of Health,Imperial College Healthcare NHS Trust,26/07/2018,Other Research Exp - Pay,Rd Medical Directorate,Imperial College London,3809775,"73,675.62",Optional requirement only
Department of Health,Imperial College Healthcare NHS Trust,26/07/2018,Other Research Exp - Pay,Rd Medical Directorate,Imperial College London,3809778,"65,715.77",Optional requirement only
Department of Health,Imperial College Healthcare NHS Trust,26/07/2018,Other Research Exp - Pay,Rd Medical Directorate,Imperial College London,3809780,"53,534.53",Optional requirement only
Department of Health,Imperial College Healthcare NHS Trust,26/07/2018,Other Research Exp - Pay,Rd Medicine Division,Imperial College London,3809777,"52,572.00",Optional requirement only
Department of Health,Imperial College Healthcare NHS Trust,26/07/2018,Patients Appl: Purchase,"Div Of Surg, Cardiov & Cancer",Chas A Blatchford And Sons Ltd,3800584,"41,737.19",Optional requirement only
Department of Health,Imperial College Healthcare NHS Trust,26/07/2018,Services Received - Nhsts,"Div Of Surg, Cardiov & Cancer",London North West Univ Healthcare Nhs Trust,3803208,"45,784.66",Optional requirement only
Department of Health,Imperial College Healthcare NHS Trust,26/07/2018,Srvcsrecd-Other Nhs,Pathology,Micropathology Ltd,3804768,"36,022.50",Optional requirement only
Department of Health,Imperial College Healthcare NHS Trust,26/07/2018,Training Expenses,Nursing Directorate,Cbre Managed Services Ltd,3810730,"35,217.63",Optional requirement only
Department of Health,Imperial College Healthcare NHS Trust,27/07/2018,Legal Fees,Pathology,Capsticks Solicitors Llp,3810958,"65,182.80",Optional requirement only
Department of Health,Imperial College Healthcare NHS Trust,27/07/2018,Legal Fees,Pathology,Capsticks Solicitors Llp,3811109,"61,880.73",Optional requirement only
Department of Health,Imperial College Healthcare NHS Trust,27/07/2018,Rent,"Div Of Surg, Cardiov & Cancer",Hanwell Health Centre,3812523,"36,427.60",Optional requirement only
,,,,,,Sum:,"60,144,241.51",
,,,,,Count:,206,,
